lending/lending_fUSD_20240110
["ID","MTS","AMOUNT","RATE_DAILY","PERIOD"]
[311083316,1704900633879,-155.0,0.00025999,2]
[311083317,1704900633888,-281.91,0.0002607,2]
[311083318,1704900633896,-150.0,0.00026079,2]
[311083320,1704900633906,-1278.36,0.00026426,2]
[311083322,1704900633916,-412.87,0.00026458,2]
[311083324,1704900633925,-758.17,0.00026575,2]
[311083326,1704900633934,-1671.52,0.00026575,2]
[311083327,1704900633943,-200.0,0.00026763,2]
[311083328,1704900633952,-400.0,0.00027,3]
[311083329,1704900633962,-1854.7755,0.00027197,2]
[311083330,1704900633971,-19423.6869,0.00027197,2]
[311083331,1704900633980,-880.3472,0.00027293,2]
[311083332,1704900633991,-348.4003,0.00027294,2]
[311083333,1704900634000,-366.57825029,0.00027295,3]
[311083334,1704900634009,-45154.38962498,0.00027297,2]
[311083335,1704900634025,-1222.08949464,0.00027297,2]
[311083336,1704900634036,-2365.25864744,0.00027297,2]
[311083337,1704900634047,-260.1426,0.00027297,2]
[311083338,1704900634058,-900.22,0.00027297,2]
[311083339,1704900634070,-1502.28437207,0.00027297,2]
[311083340,1704900634081,-968.45269273,0.00027297,2]
[311083341,1704900634097,-479.70601001,0.00027297,2]
[311083342,1704900634108,-1603.04621236,0.00027297,2]
[311083343,1704900634119,-470.19395744,0.00027297,2]
[311083344,1704900634130,-481.95145198,0.00027297,2]
[311083345,1704900634141,-2775.51649125,0.00027297,2]
[311083346,1704900634157,-417.278,0.00027297,2]
[311083347,1704900634188,-51181.8107451,0.00027297,2]
[311083348,1704900634197,-157.79684584,0.00027392,2]
[311083349,1704900634207,-197.90035749,0.00027392,2]
[311083350,1704900634216,-504.12834916,0.00027392,2]
[311083351,1704900634225,-523.56841679,0.00027392,2]
[311083352,1704900634235,-162.65355037,0.00027392,2]
[311083353,1704900634246,-200.56210925,0.00027392,2]
[311083354,1704900634255,-1245.75987952,0.00027392,2]
[311083355,1704900634266,-1126.59735648,0.00027393,2]
[311083356,1704900634275,-11388.5760616,0.00027393,2]
[311083357,1704900634284,-5099.30032581,0.00027393,2]
[311083358,1704900634294,-233.62449319,0.00027393,2]
[311083359,1704900634303,-583.40864601,0.00027394,6]
[311083360,1704900634312,-156.0189859,0.00027394,2]
[311083361,1704900634321,-131622.70301704,0.00027394,2]
[311083362,1704900634345,-443.83597126,0.00027394,2]
[311083363,1704900634356,-333.92943009,0.00027394,2]
[311083364,1704900634368,-5958.5,0.00027394,2]
[311083365,1704900634379,-450.36,0.00027394,2]
[311083366,1704900638342,-11405.98500667,0.00027394,2]
[311083367,1704900638355,-53844.75201712,0.00027394,2]
[311083368,1704900638367,-2853.91612875,0.00027394,2]
[311083369,1704900638379,-18786.38565227,0.00027394,2]
[311083370,1704900638389,-476.39714255,0.00027395,2]
[311083371,1704900638398,-263.54428736,0.00027395,2]
[311083372,1704900638407,-274.05870383,0.00027395,2]
[311083373,1704900638417,-3287.49459681,0.00027396,2]
[311083374,1704900638426,-250.0,0.00027397,2]
[311083375,1704900638435,-2500.0,0.00027397,4]
[311083376,1704900638445,-222.8,0.00027397,2]
[311083377,1704900638454,-3405.05,0.00027397,10]
[311083378,1704900638464,-2837.55,0.00027397,10]
[311083379,1704900638473,-412.87,0.00027436,2]
[311083380,1704900638482,-822.777,0.00027812,2]
[311083381,1704900638492,-183.32,0.00027848,2]
[311083382,1704900638502,-687.51052193,0.00028,2]
[311083383,1704900638512,-205.0,0.00028102,7]
[311083384,1704900638521,-157.0,0.00028168,2]
[311083385,1704900638532,-400.0,0.00028203,2]
[311083386,1704900638542,-366.57825023,0.00028274,4]
[311083387,1704900638552,-281.91,0.00028334,2]
[311083388,1704900638562,-169.0,0.00028355,2]
[311083389,1704900638572,-412.87,0.00028415,2]
[311083390,1704900638582,-500.0,0.00028521,2]
[311083391,1704900638592,-726.95,0.00028726,2]
[311083392,1704900638603,-500.0,0.00028754,2]
[311083393,1704900638613,-183.32,0.00028776,2]
[311083394,1704900638622,-222.8,0.00028822,2]
[311083395,1704900638632,-295.13989898,0.000289,2]
[311083396,1704900638643,-500.0,0.00028987,2]
[311083397,1704900638654,-450.0,0.00029,3]
[311083398,1704900638664,-94770.87266327,0.00029,2]
[311083399,1704900638676,-868.95680594,0.00029,2]
[311083400,1704900638707,-529.82133345,0.00029,2]
[311083401,1704900638718,-402.12299413,0.00029,2]
[311083402,1704900638730,-906.34908,0.00029,2]
[311083403,1704900638765,-2269.12124465,0.00029,2]
[311083621,1704900640988,-412726.56504903,0.00029,2]
[311083623,1704900641001,-202.64747312,0.00029,5]
[311083625,1704900641011,-273.05,0.00029015,2]
[311083627,1704900641022,-500.0,0.0002922,2]
[311083629,1704900641032,-366.57825023,0.00029252,4]
[311083631,1704900641042,-412.87,0.00029393,2]
[311083633,1704900641053,-500.0,0.00029453,2]
[311083635,1704900641063,-8750.0,0.000295,2]
[311083637,1704900641073,-500.0,0.00029619,2]
[311083639,1704900641082,-250.0,0.00029684,2]
[311083641,1704900641092,-500.0,0.00029686,2]
[311083643,1704900641101,-8750.0,0.00029694,2]
[311083644,1704900641111,-183.32,0.00029704,2]
[311083645,1704900641121,-155.0,0.0002971,2]
[311083646,1704900641132,-1243.14,0.00029888,2]
[311083647,1704900641143,-798.94340662,0.0002989,2]
[311083648,1704900641153,-170.93602414,0.000299,2]
[311083649,1704900641164,-170.93602414,0.000299,2]
[311083650,1704900641174,-170.93602414,0.000299,2]
[311083651,1704900641184,-500.0,0.0002992,2]
[311083652,1704900641195,-258.33493005,0.00029958,2]
[311083653,1704900641205,-412.0,0.0003,5]
[311083655,1704900641214,-155.0,0.0003,2]
[311083657,1704900641223,-2734.28685204,0.0003,2]
[311083659,1704900641233,-272.88467665,0.0003,4]
[311083661,1704900641242,-581.18679215,0.0003,2]
[311083663,1704900641256,-45176.48465106,0.0003,4]
[311083665,1704900641267,-7440.15402514,0.0003,2]
[311083667,1704900641277,-29100.85585736,0.0003,4]
[311083669,1704900641286,-682.38565376,0.0003,4]
[311083671,1704900641295,-40357.45076809,0.0003,2]
[311083673,1704900641306,-153.0,0.0003,2]
[311083675,1704900641316,-1000.0,0.00030036,2]
[311083677,1704900641325,-34077.6476,0.00030036,2]
[311083679,1704900641335,-250.0,0.00030036,2]
[311083681,1704900641344,-7500.0,0.00030036,2]
[311083683,1704900641353,-22721.188,0.00030036,2]
[311083685,1704900641363,-500.0,0.00030036,2]
[311083687,1704900641372,-6057.9407,0.00030036,3]
[311083689,1704900641383,-286.83468217,0.00030134,4]
[311083691,1704900641395,-323.35616017,0.00030134,4]
[311083693,1704900641404,-705.68739337,0.00030135,2]
[311083695,1704900641413,-500.0,0.00030136,2]
[311083697,1704900641423,-500.0,0.00030136,2]
[311083699,1704900641432,-500.0,0.00030136,2]
[311083701,1704900641441,-500.0,0.00030136,2]
[311083703,1704900641451,-500.0,0.00030136,2]
[311083705,1704900641460,-500.0,0.00030136,2]
[311083707,1704900641470,-500.0,0.00030136,2]
[311083709,1704900641480,-500.0,0.00030136,2]
[311083711,1704900641490,-500.0,0.00030136,2]
[311083713,1704900641502,-500.0,0.00030136,2]
[311083715,1704900641511,-500.0,0.00030136,2]
[311083717,1704900641521,-500.0,0.00030136,2]
[311083719,1704900641530,-500.0,0.00030136,2]
[311083721,1704900641539,-500.0,0.00030136,2]
[311083723,1704900641548,-500.0,0.00030136,2]
[311083725,1704900641559,-500.0,0.00030136,2]
[311083727,1704900641568,-500.0,0.00030136,2]
[311083729,1704900641578,-500.0,0.00030136,2]
[311083731,1704900641588,-601.13778234,0.00030136,2]
[311083733,1704900641598,-500.0,0.00030136,2]
[311083735,1704900641607,-371.19100622,0.00030136,10]
[311083737,1704900641617,-500.0,0.00030136,2]
[311083739,1704900641626,-500.0,0.00030136,2]
[311083741,1704900641636,-230.36040331,0.00030136,2]
[311083744,1704900641646,-500.0,0.00030136,2]
[311083746,1704900641656,-500.0,0.00030136,2]
[311083748,1704900641666,-500.0,0.00030136,2]
[311083750,1704900641676,-500.0,0.00030136,2]
[311083752,1704900641685,-500.0,0.00030136,2]
[311083754,1704900641694,-500.0,0.00030136,2]
[311083756,1704900641704,-500.0,0.00030136,2]
[311083758,1704900641713,-500.0,0.00030136,2]
[311083761,1704900641734,-500.0,0.00030136,2]
[311083763,1704900641743,-500.0,0.00030136,2]
[311083765,1704900641758,-500.0,0.00030136,2]
[311083767,1704900641768,-500.0,0.00030136,2]
[311083769,1704900641778,-500.0,0.00030136,2]
[311083771,1704900641788,-500.0,0.00030136,2]
[311083773,1704900641798,-500.0,0.00030136,2]
[311083776,1704900641808,-1021.1,0.00030136,2]
[311083778,1704900641818,-509.96656489,0.00030136,2]
[311083780,1704900641828,-500.0,0.00030136,2]
[311083782,1704900641837,-500.0,0.00030136,2]
[311083784,1704900641847,-500.0,0.00030136,2]
[311083786,1704900641857,-500.0,0.00030136,2]
[311083788,1704900641868,-500.0,0.00030136,2]
[311083790,1704900641879,-500.0,0.00030136,2]
[311083792,1704900641889,-500.0,0.00030136,2]
[311083794,1704900641898,-500.0,0.00030136,2]
[311083796,1704900641908,-500.0,0.00030136,2]
[311083798,1704900641918,-500.0,0.00030136,2]
[311083800,1704900641928,-541.12707446,0.00030136,2]
[311083802,1704900641938,-166.92676881,0.00030136,2]
[311083804,1704900641947,-500.0,0.00030136,2]
[311083806,1704900641957,-500.0,0.00030136,2]
[311083808,1704900641967,-500.0,0.00030136,2]
[311083810,1704900641977,-500.0,0.00030136,2]
[311083812,1704900641987,-500.0,0.00030136,2]
[311083814,1704900641998,-500.0,0.00030136,2]
[311083816,1704900642008,-500.0,0.00030136,2]
[311083818,1704900642018,-500.0,0.00030136,2]
[311083820,1704900642028,-500.0,0.00030136,2]
[311083822,1704900642038,-500.0,0.00030136,2]
[311083824,1704900642048,-500.0,0.00030136,2]
[311083826,1704900642058,-500.0,0.00030136,2]
[311083829,1704900642068,-500.0,0.00030136,2]
[311083831,1704900642078,-500.0,0.00030136,2]
[311083833,1704900642087,-735.94,0.00030136,2]
[311083835,1704900642098,-500.0,0.00030136,2]
[311083837,1704900642107,-500.0,0.00030136,2]
[311083839,1704900642117,-655.58,0.00030136,2]
[311083841,1704900642127,-500.0,0.00030136,2]
[311083843,1704900642137,-500.0,0.00030136,2]
[311083845,1704900642147,-500.0,0.00030136,2]
[311083847,1704900642157,-500.0,0.00030136,2]
[311083849,1704900642167,-500.0,0.00030136,2]
[311083851,1704900642177,-500.0,0.00030136,2]
[311083853,1704900642187,-500.0,0.00030136,2]
[311083855,1704900642197,-991.96,0.00030136,2]
[311083857,1704900642207,-500.0,0.00030136,2]
[311083859,1704900642216,-500.0,0.00030136,2]
[311083861,1704900642226,-500.0,0.00030136,2]
[311083864,1704900642236,-500.0,0.00030136,2]
[311083866,1704900642249,-500.0,0.00030136,2]
[311083868,1704900642259,-500.0,0.00030136,2]
[311083870,1704900642269,-182.92186613,0.00030136,2]
[311083872,1704900642279,-580.21,0.00030136,2]
[311083874,1704900642289,-500.0,0.00030136,2]
[311083876,1704900642299,-500.0,0.00030136,2]
[311083878,1704900642309,-500.0,0.00030136,2]
[311083880,1704900642319,-613.09920721,0.00030136,2]
[311083882,1704900642328,-500.0,0.00030136,2]
[311083884,1704900642338,-500.0,0.00030136,2]
[311083886,1704900642347,-500.0,0.00030136,2]
[311083888,1704900642356,-500.0,0.00030136,2]
[311083890,1704900642366,-296.38001612,0.00030136,2]
[311083940,1704900642766,-500.0,0.00030136,2]
[311083942,1704900642777,-500.0,0.00030136,2]
[311083944,1704900642787,-500.0,0.00030136,2]
[311083947,1704900642797,-500.0,0.00030136,2]
[311083949,1704900642807,-209.80157908,0.00030136,2]
[311083951,1704900642816,-500.0,0.00030136,2]
[311083953,1704900642826,-500.0,0.00030136,2]
[311083955,1704900642836,-500.0,0.00030136,2]
[311083957,1704900642846,-500.0,0.00030136,2]
[311083959,1704900642856,-500.0,0.00030136,2]
[311083961,1704900642865,-500.0,0.00030136,2]
[311083963,1704900642874,-500.0,0.00030136,2]
[311083965,1704900642883,-612.21,0.00030136,2]
[311083967,1704900642893,-500.0,0.00030136,2]
[311083969,1704900642903,-500.0,0.00030136,2]
[311083971,1704900642911,-500.0,0.00030136,2]
[311083973,1704900642920,-500.0,0.00030136,2]
[311083975,1704900642930,-354.11957386,0.00030136,2]
[311083977,1704900642940,-500.0,0.00030136,2]
[311083979,1704900642949,-334.06134281,0.00030136,2]
[311083981,1704900642959,-500.0,0.00030136,2]
[311083983,1704900642969,-500.0,0.00030136,2]
[311083985,1704900642979,-500.0,0.00030136,2]
[311083987,1704900642988,-500.0,0.00030136,2]
[311083989,1704900643002,-500.0,0.00030136,2]
[311083991,1704900643012,-500.0,0.00030136,2]
[311083993,1704900643021,-500.0,0.00030136,2]
[311083995,1704900643030,-500.0,0.00030136,2]
[311083997,1704900643040,-500.0,0.00030136,2]
[311083999,1704900643050,-500.0,0.00030136,2]
[311084001,1704900643059,-500.0,0.00030136,2]
[311084003,1704900643068,-500.0,0.00030136,2]
[311084005,1704900643078,-500.0,0.00030136,2]
[311084007,1704900643092,-500.0,0.00030136,2]
[311084009,1704900643102,-500.0,0.00030136,2]
[311084011,1704900643112,-500.0,0.00030136,2]
[311084014,1704900643122,-500.0,0.00030136,2]
[311084016,1704900643131,-216.49512753,0.00030136,2]
[311084018,1704900643141,-500.0,0.00030136,2]
[311084020,1704900643150,-557.00159197,0.00030136,2]
[311084022,1704900643159,-500.0,0.00030136,2]
[311084024,1704900643169,-500.0,0.00030136,2]
[311084026,1704900643179,-500.0,0.00030136,2]
[311084028,1704900643188,-500.0,0.00030136,2]
[311084030,1704900643198,-1525.56,0.00030136,2]
[311084032,1704900643208,-500.0,0.00030136,2]
[311084034,1704900643218,-636.12,0.00030136,2]
[311084036,1704900643227,-500.0,0.00030136,2]
[311084038,1704900643237,-500.0,0.00030136,2]
[311084040,1704900643249,-500.0,0.00030136,2]
[311084042,1704900643258,-500.0,0.00030136,2]
[311084044,1704900643268,-500.0,0.00030136,2]
[311084046,1704900643278,-500.0,0.00030136,2]
[311084048,1704900643287,-500.0,0.00030136,2]
[311084050,1704900643298,-728.56,0.00030136,2]
[311084052,1704900643307,-500.0,0.00030136,4]
[311084054,1704900643317,-1118.0,0.00030136,2]
[311084056,1704900643326,-500.0,0.00030136,2]
[311084058,1704900643336,-500.0,0.00030136,2]
[311084060,1704900643346,-500.0,0.00030136,2]
[311084062,1704900643355,-500.0,0.00030136,2]
[311084065,1704900643365,-500.0,0.00030136,2]
[311084067,1704900643376,-500.0,0.00030136,2]
[311084069,1704900643386,-515.88,0.00030136,2]
[311084071,1704900643397,-385.36592631,0.00030136,2]
[311084073,1704900643407,-500.0,0.00030136,2]
[311084075,1704900643416,-500.0,0.00030136,2]
[311084077,1704900643425,-500.0,0.00030136,2]
[311084079,1704900643434,-923.52,0.00030136,2]
[311084081,1704900643445,-500.0,0.00030136,2]
[311084083,1704900643454,-500.0,0.00030136,2]
[311084085,1704900643463,-500.0,0.00030136,2]
[311084087,1704900643473,-415.93513556,0.00030136,2]
[311084089,1704900643482,-500.0,0.00030136,2]
[311084091,1704900643491,-500.0,0.00030136,2]
[311084093,1704900643503,-500.0,0.00030136,2]
[311084095,1704900643513,-817.14,0.00030136,2]
[311084097,1704900643523,-500.0,0.00030136,2]
[311084099,1704900643532,-500.0,0.00030136,2]
[311084101,1704900643542,-182.79520437,0.00030136,2]
[311084103,1704900643551,-500.0,0.00030136,2]
[311084105,1704900643561,-500.0,0.00030136,2]
[311084107,1704900643570,-500.0,0.00030136,2]
[311084109,1704900643579,-500.0,0.00030136,2]
[311084111,1704900643588,-500.0,0.00030136,2]
[311084113,1704900643598,-504.30731785,0.00030136,2]
[311084115,1704900643608,-500.0,0.00030136,2]
[311084117,1704900643617,-500.0,0.00030136,2]
[311084118,1704900643626,-500.0,0.00030136,2]
[311084121,1704900643635,-500.0,0.00030136,2]
[311084123,1704900643645,-500.0,0.00030136,2]
[311084125,1704900643655,-500.0,0.00030136,2]
[311084127,1704900643664,-500.0,0.00030136,2]
[311084129,1704900643673,-500.0,0.00030136,2]
[311084131,1704900643683,-500.0,0.00030136,2]
[311084133,1704900643692,-500.0,0.00030136,2]
[311084135,1704900643702,-500.0,0.00030136,2]
[311084137,1704900643711,-492.03438797,0.00030136,2]
[311084139,1704900643721,-500.0,0.00030136,2]
[311084141,1704900643730,-500.0,0.00030136,2]
[311084143,1704900643739,-500.0,0.00030136,2]
[311084145,1704900643750,-500.0,0.00030136,2]
[311084147,1704900643760,-2525.24,0.00030136,2]
[311084148,1704900643769,-500.0,0.00030136,2]
[311084150,1704900643779,-500.0,0.00030136,2]
[311084152,1704900643789,-500.0,0.00030136,2]
[311084154,1704900643799,-500.0,0.00030136,2]
[311084156,1704900643808,-500.0,0.00030136,2]
[311084158,1704900643818,-500.0,0.00030136,2]
[311084160,1704900643827,-500.0,0.00030136,2]
[311084162,1704900643837,-455.23762095,0.00030136,2]
[311084164,1704900643847,-500.0,0.00030136,2]
[311084165,1704900643856,-500.0,0.00030136,2]
[311084166,1704900643866,-500.0,0.00030136,2]
[311084167,1704900643875,-500.0,0.00030136,2]
[311084169,1704900643884,-500.0,0.00030136,2]
[311084171,1704900643893,-500.0,0.00030136,2]
[311084173,1704900643903,-500.0,0.00030136,2]
[311084175,1704900643913,-500.0,0.00030136,2]
[311084177,1704900643922,-593.17600938,0.00030136,2]
[311084179,1704900643931,-500.0,0.00030136,2]
[311084181,1704900643943,-500.0,0.00030136,2]
[311084183,1704900643953,-1570.45,0.00030136,2]
[311084185,1704900643962,-500.0,0.00030136,2]
[311084187,1704900643971,-500.0,0.00030136,2]
[311084189,1704900643981,-500.0,0.00030136,2]
[311084191,1704900643991,-500.0,0.00030136,2]
[311084193,1704900644003,-500.0,0.00030136,2]
[311084195,1704900644013,-248.33,0.00030136,2]
[311084197,1704900644023,-194.92508164,0.00030136,2]
[311084199,1704900644032,-500.0,0.00030136,2]
[311084202,1704900644043,-500.0,0.00030136,2]
[311084204,1704900644052,-500.0,0.00030136,2]
[311084206,1704900644061,-500.0,0.00030136,2]
[311084208,1704900644070,-508.11106069,0.00030136,2]
[311084210,1704900644080,-500.0,0.00030136,2]
[311084212,1704900644089,-500.0,0.00030136,2]
[311084215,1704900644098,-500.0,0.00030136,2]
[311084218,1704900644109,-500.0,0.00030136,2]
[311084221,1704900644118,-368.33891314,0.00030136,2]
[311084223,1704900644128,-500.0,0.00030136,2]
[311084224,1704900644137,-635.68,0.00030136,2]
[311084225,1704900644147,-500.0,0.00030136,2]
[311084226,1704900644156,-549.14,0.00030136,2]
[311084227,1704900644166,-500.0,0.00030136,2]
[311084228,1704900644175,-500.0,0.00030136,2]
[311084229,1704900644184,-1087.18,0.00030136,2]
[311084230,1704900644194,-298.56502431,0.00030136,2]
[311084231,1704900644204,-500.0,0.00030136,2]
[311084232,1704900644214,-500.0,0.00030136,2]
[311084233,1704900644223,-500.0,0.00030136,2]
[311084234,1704900644233,-1006.97,0.00030136,2]
[311084235,1704900644242,-500.0,0.00030136,2]
[311084236,1704900644254,-500.0,0.00030136,2]
[311084237,1704900644263,-500.0,0.00030136,2]
[311084238,1704900644273,-500.0,0.00030136,2]
[311084239,1704900644283,-500.0,0.00030136,2]
[311084240,1704900644292,-500.0,0.00030136,2]
[311084241,1704900644302,-500.0,0.00030136,2]
[311084242,1704900644311,-500.0,0.00030136,2]
[311084243,1704900644321,-821.81,0.00030136,2]
[311084244,1704900644330,-500.0,0.00030136,2]
[311084245,1704900644340,-500.0,0.00030136,2]
[311084246,1704900644349,-652.25,0.00030136,2]
[311084247,1704900644359,-500.0,0.00030136,7]
[311084248,1704900644369,-500.0,0.00030136,2]
[311084249,1704900644379,-500.0,0.00030136,2]
[311084250,1704900644388,-500.0,0.00030136,2]
[311084251,1704900644397,-500.0,0.00030136,2]
[311084252,1704900644407,-500.0,0.00030136,2]
[311084253,1704900644417,-500.0,0.00030136,2]
[311084254,1704900644426,-500.0,0.00030136,2]
[311084255,1704900644435,-500.0,0.00030136,2]
[311084256,1704900644445,-500.0,0.00030136,2]
[311084257,1704900644456,-417.91170699,0.00030136,2]
[311084258,1704900644466,-500.0,0.00030136,2]
[311084259,1704900644475,-500.0,0.00030136,2]
[311084260,1704900644484,-500.0,0.00030136,2]
[311084261,1704900644494,-500.0,0.00030136,2]
[311084262,1704900644506,-500.0,0.00030136,2]
[311084263,1704900644515,-804.63,0.00030136,2]
[311084264,1704900644524,-500.0,0.00030136,2]
[311084265,1704900644534,-500.0,0.00030136,2]
[311084266,1704900644543,-467.39726567,0.00030136,2]
[311084267,1704900644553,-500.0,0.00030136,2]
[311084268,1704900644564,-500.0,0.00030136,2]
[311084269,1704900644575,-500.0,0.00030136,2]
[311084270,1704900644585,-500.0,0.00030136,2]
[311084271,1704900644594,-500.0,0.00030136,2]
[311084272,1704900644604,-500.0,0.00030136,2]
[311084273,1704900644615,-500.0,0.00030136,2]
[311084274,1704900644624,-734.66,0.00030136,2]
[311084275,1704900644635,-500.0,0.00030136,2]
[311084276,1704900644647,-500.0,0.00030136,2]
[311084277,1704900644657,-500.0,0.00030136,2]
[311084278,1704900644666,-500.0,0.00030136,2]
[311084279,1704900644676,-500.0,0.00030136,2]
[311084280,1704900644686,-500.0,0.00030136,2]
[311084281,1704900644695,-638.65313361,0.00030136,2]
[311084282,1704900644707,-500.0,0.00030136,2]
[311084283,1704900644717,-500.0,0.00030136,2]
[311084284,1704900644726,-480.2692046,0.00030136,2]
[311084285,1704900644736,-500.0,0.00030136,2]
[311084286,1704900644748,-942.99,0.00030136,2]
[311084287,1704900644758,-500.0,0.00030136,2]
[311084288,1704900644767,-500.0,0.00030136,2]
[311084289,1704900644777,-181.56,0.00030136,2]
[311084290,1704900644786,-500.0,0.00030136,2]
[311084291,1704900644797,-500.0,0.00030136,2]
[311084292,1704900644807,-500.0,0.00030136,2]
[311084293,1704900644817,-500.0,0.00030136,2]
[311084294,1704900644827,-500.0,0.00030136,2]
[311084295,1704900644837,-500.0,0.00030136,2]
[311084296,1704900644847,-500.0,0.00030136,2]
[311084297,1704900644856,-500.0,0.00030136,2]
[311084298,1704900644866,-500.0,0.00030136,2]
[311084299,1704900644875,-500.0,0.00030136,2]
[311084300,1704900644885,-500.0,0.00030136,2]
[311084301,1704900644895,-500.0,0.00030136,2]
[311084302,1704900644906,-500.0,0.00030136,2]
[311084303,1704900644916,-500.0,0.00030136,2]
[311084304,1704900644925,-500.0,0.00030136,2]
[311084305,1704900644935,-500.0,0.00030136,2]
[311084306,1704900644945,-205.9169873,0.00030136,2]
[311084307,1704900644954,-500.0,0.00030136,2]
[311084308,1704900644964,-527.19200481,0.00030136,2]
[311084309,1704900644973,-554.08394981,0.00030136,2]
[311084310,1704900644983,-567.90008527,0.00030136,2]
[311084311,1704900644992,-500.0,0.00030136,2]
[311084312,1704900645002,-500.0,0.00030136,2]
[311084313,1704900645012,-500.0,0.00030136,2]
[311084314,1704900645022,-500.0,0.00030136,2]
[311084315,1704900645031,-500.0,0.00030136,2]
[311084316,1704900645041,-500.0,0.00030136,2]
[311084317,1704900645050,-500.0,0.00030136,2]
[311084318,1704900645061,-500.0,0.00030136,2]
[311084319,1704900645070,-500.0,0.00030136,2]
[311084320,1704900645079,-500.0,0.00030136,2]
[311084321,1704900645089,-500.0,0.00030136,2]
[311084322,1704900645098,-500.0,0.00030136,2]
[311084323,1704900645108,-500.0,0.00030136,2]
[311084324,1704900645117,-500.0,0.00030136,2]
[311084325,1704900645127,-500.0,0.00030136,2]
[311084326,1704900645222,-500.0,0.00030136,2]
[311084327,1704900645231,-500.0,0.00030136,2]
[311084328,1704900645241,-1066.85,0.00030136,2]
[311084329,1704900645252,-500.0,0.00030136,2]
[311084330,1704900645261,-500.0,0.00030136,2]
[311084331,1704900645271,-500.0,0.00030136,2]
[311084332,1704900645281,-500.0,0.00030136,2]
[311084333,1704900645290,-500.0,0.00030136,2]
[311084334,1704900645299,-500.0,0.00030136,2]
[311084335,1704900645308,-500.0,0.00030136,2]
[311084336,1704900645318,-694.05,0.00030136,2]
[311084337,1704900645327,-500.0,0.00030136,2]
[311084338,1704900645336,-500.0,0.00030136,2]
[311084339,1704900645346,-426.83380744,0.00030136,2]
[311084340,1704900645355,-150.0,0.00030136,2]
[311084341,1704900645366,-250.0,0.00030136,2]
[311084342,1704900645375,-500.0,0.00030136,2]
[311084343,1704900645385,-500.0,0.00030136,2]
[311084344,1704900645397,-500.0,0.00030136,2]
[311084345,1704900645407,-500.0,0.00030136,2]
[311084346,1704900645417,-500.0,0.00030136,2]
[311084347,1704900645426,-267.48678109,0.00030136,2]
[311084348,1704900645437,-500.0,0.00030136,2]
[311084349,1704900645446,-500.0,0.00030136,2]
[311084350,1704900645455,-500.0,0.00030136,2]
[311084351,1704900645464,-500.0,0.00030136,2]
[311084352,1704900645475,-500.0,0.00030136,2]
[311084353,1704900645485,-500.0,0.00030136,2]
[311084354,1704900645494,-500.0,0.00030136,2]
[311084355,1704900645507,-500.0,0.00030136,2]
[311084357,1704900645516,-500.0,0.00030136,2]
[311084358,1704900645526,-207.643084,0.00030136,2]
[311084359,1704900645536,-313.17518168,0.00030136,2]
[311084360,1704900645545,-500.0,0.00030136,2]
[311084361,1704900645555,-500.0,0.00030136,2]